bitfinex/quotes_BTCUSD_20230106
["timestamp","ask_amount","ask_price","bid_price","bid_amount"]
[1672986368108,1.45258253,16811.0,16810.0,1.25480978]
[1672986368710,1.80910834,16811.0,16810.0,1.25480978]
[1672986369503,1.99003417,16811.0,16810.0,1.25480978]
[1672986370613,1.63350836,16811.0,16810.0,1.25480978]
[1672986371694,1.99006869,16811.0,16810.0,1.25480978]
[1672986371955,1.63350836,16811.0,16810.0,1.25480978]
[1672986372480,1.45258253,16811.0,16810.0,1.25480978]
[1672986374094,1.45258253,16811.0,16810.0,0.65992678]
[1672986375370,1.45258253,16811.0,16810.0,1.25480978]
[1672986375864,1.45258253,16811.0,16810.0,0.65992678]
[1672986376386,1.75276818,16811.0,16810.0,0.65985877]
[1672986376689,1.30709635,16811.0,16810.0,0.65985877]
[1672986376909,1.53585282,16811.0,16810.0,0.06497577]
[1672986377159,1.30709635,16811.0,16810.0,0.06497577]
[1672986378713,1.00709635,16811.0,16810.0,0.06497577]
[1672986378985,1.4526679,16811.0,16810.0,0.65985877]
[1672986379272,1.45266715,16811.0,16810.0,0.65985877]
[1672986382313,1.00709635,16811.0,16810.0,0.65985877]
[1672986382567,1.45258757,16811.0,16810.0,0.65985877]
[1672986383101,0.7929517,16811.0,16810.0,1.25474177]
[1672986384121,1.14932413,16811.0,16810.0,1.77467167]
[1672986384427,0.80586365,16811.0,16810.0,1.77467167]
[1672986387125,1.073167,16811.0,16810.0,1.77467167]
[1672986387611,0.62767578,16811.0,16810.0,1.77467167]
[1672986388110,0.80586365,16811.0,16810.0,1.77467167]
[1672986390601,1.07318569,16811.0,16810.0,1.77467167]
[1672986391143,0.80586365,16811.0,16810.0,1.77467167]
[1672986393926,1.14813105,16811.0,16810.0,1.77467167]
[1672986394174,0.80586365,16811.0,16810.0,1.77467167]
[1672986394669,1.14781213,16811.0,16810.0,1.77467167]
[1672986401941,0.80586365,16811.0,16810.0,1.77467167]
[1672986402200,0.627796,16811.0,16810.0,1.77467167]
[1672986402677,1.07328722,16811.0,16810.0,1.77467167]
[1672986402916,0.627796,16811.0,16810.0,1.77467167]
[1672986403633,1.14813657,16811.0,16810.0,1.25474177]
[1672986403873,0.79176414,16811.0,16810.0,1.25474177]
[1672986405407,0.34627292,16811.0,16810.0,1.25466421]
[1672986405653,0.79195141,16811.0,16810.0,1.25466421]
[1672986405908,0.34627292,16811.0,16810.0,1.25466421]
[1672986406160,0.79194948,16811.0,16810.0,1.25466421]
[1672986408360,0.79194219,16811.0,16810.0,1.25466421]
[1672986408626,0.34627292,16811.0,16810.0,1.25466421]
[1672986408872,0.79194003,16811.0,16810.0,1.25466421]
[1672986410141,0.34627292,16811.0,16810.0,1.25466421]
[1672986411138,0.79193528,16811.0,16810.0,1.25466421]
[1672986412619,1.13380187,16811.0,16810.0,1.25466421]
[1672986412859,1.13380187,16811.0,16810.0,0.65978121]
[1672986416919,1.13380187,16811.0,16810.0,0.06489821]
[1672986417199,2.28026336,16811.0,16810.0,0.06489821]
[1672986417448,1.66859836,16811.0,16810.0,0.06489821]
[1672986417924,2.28026336,16811.0,16810.0,0.06489821]
[1672986418902,2.8788281,16811.0,16810.0,0.02150243]
[1672986419391,2.28026336,16811.0,16810.0,0.02150243]
[1672986419629,2.87627562,16811.0,16810.0,0.02150243]
[1672986419892,2.28026336,16811.0,16810.0,0.02150243]
[1672986420372,2.0758497,16811.0,16810.0,0.02150243]
[1672986420647,2.0751337,16811.0,16810.0,0.02150243]
[1672986421683,2.67114596,16811.0,16810.0,0.02150243]
[1672986423000,2.15658218,16811.0,16810.0,0.02150243]
[1672986423239,2.75143018,16811.0,16810.0,0.02150243]
[1672986423485,3.74788285,16811.0,16810.0,0.02150243]
[1672986423730,3.74788285,16811.0,16810.0,0.00495908]
[1672986423973,3.74788285,16811.0,16810.0,0.01629987]
[1672986424952,3.74788285,16811.0,16810.0,0.00495908]
[1672986425686,3.15187059,16811.0,16810.0,0.00495908]
[1672986425968,3.1462368,16811.0,16810.0,0.00495908]
[1672986426196,1.95537654,16811.0,16810.0,0.00495908]
[1672986426455,2.5513888,16811.0,16810.0,0.00495908]
[1672986426720,3.07919313,16811.0,16810.0,0.00495908]
[1672986429266,3.61288748,16811.0,16810.0,0.00495908]
[1672986429514,3.08508315,16811.0,16810.0,0.00495908]
[1672986429758,2.5513888,16811.0,16810.0,0.00495908]
[1672986430001,3.1462368,16811.0,16810.0,0.00495908]
[1672986430241,3.74788285,16811.0,16810.0,0.00495908]
[1672986431254,3.10630228,16811.0,16810.0,0.00495908]
[1672986431487,2.5513888,16811.0,16810.0,0.00495908]
[1672986431957,3.1462368,16811.0,16810.0,0.00495908]
[1672986432202,3.74788285,16811.0,16810.0,0.00495908]
[1672986432924,3.1462368,16811.0,16810.0,0.00495908]
[1672986433157,2.5513888,16811.0,16810.0,0.00495908]
[1672986433890,3.1462368,16811.0,16810.0,0.00115003]
[1672986438019,3.74788285,16811.0,16810.0,0.00115003]
[1672986439111,3.74788285,16811.0,16810.0,0.00039929]
[1672986443900,3.74788285,16811.0,16810.0,9.223e-05]
[1672986449449,3.15303485,16811.0,16810.0,9.223e-05]
[1672986449712,2.5513888,16811.0,16810.0,9.223e-05]
[1672986450787,3.08306505,16811.0,16810.0,9.223e-05]
[1672986451083,1.49739817,16811.0,16810.0,9.223e-05]
[1672986451343,2.09341043,16811.0,16810.0,9.223e-05]
[1672986451603,2.62734934,16811.0,16810.0,9.223e-05]
[1672986452107,2.09341043,16811.0,16810.0,9.223e-05]
[1672986452376,2.62735859,16811.0,16810.0,9.223e-05]
[1672986452900,2.62739262,16811.0,16810.0,9.223e-05]
[1672986453400,2.62754464,16811.0,16810.0,9.223e-05]
[1672986453653,3.00996311,16811.0,16810.0,9.223e-05]
[1672986454412,3.00995921,16811.0,16810.0,0.02409223]
[1672986455412,2.4758289,16811.0,16810.0,0.02409223]
[1672986456588,2.09341043,16811.0,16810.0,0.02409223]
[1672986457380,2.69505648,16811.0,16810.0,0.02409223]
[1672986457639,2.16221597,16811.0,16810.0,0.02409223]
[1672986457889,3.36017801,16811.0,16810.0,0.02409223]
[1672986458977,3.36017801,16811.0,16810.0,0.00822498]
[1672986460053,3.75568031,16811.0,16810.0,0.00822498]
[1672986462830,3.15373053,16811.0,16810.0,0.00822498]
[1672986463611,3.79579938,16811.0,16810.0,0.00822498]
[1672986465170,3.15373053,16811.0,16810.0,0.00822498]
[1672986465424,3.14693248,16811.0,16810.0,0.0019146]
[1672986466463,3.65233639,16811.0,16810.0,0.0019146]
[1672986466975,3.05748839,16811.0,16810.0,0.0019146]
[1672986468350,3.05420439,16811.0,16810.0,0.0019146]
[1672986468612,2.67680048,16811.0,16810.0,0.0069146]
[1672986468910,2.54880048,16811.0,16810.0,0.0019146]
[1672986469168,2.67680048,16811.0,16810.0,0.0069146]
[1672986471847,3.27164848,16811.0,16810.0,0.0069146]
[1672986472373,2.67680048,16811.0,16810.0,0.0069146]
[1672986473435,3.27164848,16811.0,16810.0,0.0069146]
[1672986473697,3.29016991,16811.0,16810.0,0.0069146]
[1672986473948,2.67680048,16811.0,16810.0,0.0069146]
[1672986474475,3.3761114,16811.0,16810.0,0.0069146]
[1672986474737,3.22747598,16811.0,16810.0,0.0069146]
[1672986474993,2.67680048,16811.0,16810.0,0.0069146]
[1672986475263,3.88686255,16811.0,16810.0,0.00182062]
[1672986476464,3.27825781,16811.0,16810.0,0.00182062]
[1672986476957,3.82059917,16811.0,16810.0,0.00182062]
[1672986477984,3.74212852,16811.0,16810.0,0.00182062]
[1672986478237,3.21914184,16811.0,16810.0,0.00182062]
[1672986479030,3.21914184,16811.0,16810.0,0.00072166]
[1672986479785,3.8206314,16811.0,16810.0,0.00072166]
[1672986480038,3.74212852,16811.0,16810.0,0.00072166]
[1672986480282,3.21914184,16811.0,16810.0,0.00072166]
[1672986480559,3.820631,16811.0,16810.0,0.00072166]
[1672986480807,3.225783,16811.0,16810.0,0.00072166]
[1672986482373,2.8302807,16811.0,16810.0,0.00072166]
[1672986484991,1.63277928,16811.0,16810.0,0.00072166]
[1672986485229,1.52111428,16811.0,16810.0,0.00072166]
[1672986485713,2.73426844,16811.0,16810.0,0.00072166]
[1672986485936,2.13277928,16811.0,16810.0,0.00072166]
[1672986486670,1.52111428,16811.0,16810.0,0.00072166]
[1672986486929,3.54255604,16811.0,16810.0,0.00072166]
[1672986487152,2.94654378,16811.0,16810.0,0.00072166]
[1672986487388,2.73426844,16811.0,16810.0,0.00072166]
[1672986487882,1.52111428,16811.0,16810.0,0.00072166]
[1672986488413,2.11712654,16811.0,16810.0,0.00072166]
[1672986488660,3.3302807,16811.0,16810.0,0.00072166]
[1672986489876,2.73426844,16811.0,16810.0,0.00072166]
[1672986490120,3.3302807,16811.0,16810.0,0.00072166]
[1672986490363,3.12679331,16811.0,16810.0,0.00072166]
[1672986491161,3.72280557,16811.0,16810.0,0.00072166]
[1672986493763,3.12679331,16811.0,16810.0,0.00072166]
[1672986494235,3.72280557,16811.0,16810.0,0.00072166]
[1672986497272,3.12679331,16811.0,16810.0,0.00072166]
[1672986497529,3.72280557,16811.0,16810.0,0.00072166]
[1672986498053,3.12679331,16811.0,16810.0,0.00072166]
[1672986498451,3.72280557,16811.0,16810.0,0.00072166]
[1672986498629,3.12679331,16811.0,16810.0,0.00072166]
[1672986499145,3.12679331,16811.0,16810.0,0.00028419]
[1672986499411,3.72280557,16811.0,16810.0,0.00028419]
[1672986499935,3.12679331,16811.0,16810.0,0.00028419]
[1672986500198,2.73426844,16811.0,16810.0,0.00028419]
[1672986501483,2.13277928,16811.0,16810.0,0.00028419]
[1672986505722,1.52111428,16811.0,16810.0,0.00028419]
[1672986505966,2.13277928,16811.0,16810.0,0.00028419]
[1672986507835,2.66803556,16811.0,16810.0,0.00028419]
[1672986508345,2.66801698,16811.0,16810.0,0.00028419]
[1672986508660,2.66800157,16811.0,16810.0,0.00028419]
[1672986508874,2.13277928,16811.0,16810.0,0.00028419]
[1672986509385,2.667967,16811.0,16810.0,0.00028419]
[1672986510674,2.13277928,16811.0,16810.0,0.00028419]
[1672986511703,2.05636369,16811.0,16810.0,0.00028419]
[1672986511959,2.66802869,16811.0,16810.0,0.00028419]
[1672986513525,2.65952869,16811.0,16810.0,0.00028419]
[1672986513739,2.45039607,16811.0,16810.0,0.00028419]
[1672986514248,2.98560617,16811.0,16810.0,0.00028419]
[1672986514745,2.45039607,16811.0,16810.0,0.00028419]
[1672986515278,2.98561191,16811.0,16810.0,0.00028419]
[1672986515545,2.45039607,16811.0,16810.0,0.00028419]
[1672986516056,2.98579039,16811.0,16810.0,0.00028419]
[1672986516360,2.98579049,16811.0,16810.0,0.00028419]
[1672986516591,2.6596737,16811.0,16810.0,0.00028419]
[1672986517355,2.6681737,16811.0,16810.0,0.00028419]
[1672986519148,2.13277928,16811.0,16810.0,0.00028419]
[1672986519401,2.66819595,16811.0,16810.0,0.00028419]
[1672986519655,2.45974779,16811.0,16810.0,0.00028419]
[1672986519966,3.05576005,16811.0,16810.0,0.00014689]
[1672986520276,2.45974779,16811.0,16810.0,0.00014689]
[1672986520472,2.13277928,16811.0,16810.0,0.00014689]
[1672986520726,1.52111428,16811.0,16810.0,0.00014689]
[1672986522509,2.13277928,16811.0,16810.0,0.00014689]
[1672986523018,1.52111428,16811.0,16810.0,0.00014689]
[1672986523795,1.79297585,16811.0,16810.0,0.00014689]
[1672986525585,2.05652107,16811.0,16810.0,0.00014689]
[1672986526348,2.05651239,16811.0,16810.0,0.00014689]
[1672986526598,1.52111428,16811.0,16810.0,0.00014689]
[1672986527641,2.05650011,16811.0,16810.0,0.00014689]
[1672986527925,2.05650011,16811.0,16810.0,0.59502989]
[1672986529176,2.05650011,16811.0,16810.0,0.00014689]
[1672986529177,1.78692821,16811.0,16810.0,0.00014689]
[1672986530469,2.05651449,16811.0,16810.0,0.00014689]
[1672986533058,2.05651449,16811.0,16810.0,0.59502989]
[1672986534573,2.05651449,16811.0,16810.0,0.00014689]
[1672986535091,1.52111428,16811.0,16810.0,0.00014689]
[1672986540580,2.7186157,16811.0,16810.0,7.623e-05]
[1672986540914,2.12260344,16811.0,16810.0,7.623e-05]
[1672986541157,2.12260344,16811.0,16810.0,0.01584431]
[1672986541158,2.39448001,16811.0,16810.0,0.01584431]
[1672986541890,2.73426844,16811.0,16810.0,0.01584431]
[1672986542609,2.13277928,16811.0,16810.0,0.01584431]
[1672986543104,1.52111428,16811.0,16810.0,0.01584431]
[1672986544871,1.51261428,16811.0,16810.0,0.01584431]
[1672986551644,2.12427928,16811.0,16810.0,0.01584431]
[1672986551947,2.72576844,16811.0,16810.0,0.01584431]
[1672986552557,2.99836028,16811.0,16810.0,0.01584431]
[1672986552811,2.39687112,16811.0,16810.0,0.01584431]
[1672986553069,2.99836028,16811.0,16810.0,0.01584431]
[1672986557036,3.59437254,16811.0,16810.0,0.01584431]
[1672986557296,2.99836028,16811.0,16810.0,0.01584431]
[1672986558054,2.39687112,16811.0,16810.0,0.01584431]
[1672986558303,1.51261428,16811.0,16810.0,0.01584431]
[1672986558563,2.12427928,16811.0,16810.0,0.01584431]
[1672986559069,1.51261428,16811.0,16810.0,0.01584431]
[1672986559603,2.12427928,16811.0,16810.0,0.01584431]
[1672986560357,1.51261428,16811.0,16810.0,0.00827995]
[1672986560607,1.72402462,16811.0,16810.0,0.00827995]
[1672986560859,2.33568962,16811.0,16810.0,0.00827995]
[1672986561111,2.93717878,16811.0,16810.0,0.00827995]
[1672986565550,2.33568962,16811.0,16810.0,0.00827995]
[1672986566581,2.93717878,16811.0,16810.0,0.00827995]
[1672986567072,2.33568962,16811.0,16810.0,0.00827995]
[1672986568372,2.93717878,16811.0,16810.0,0.00827995]
[1672986569388,2.94567878,16811.0,16810.0,0.00827995]
[1672986573007,3.54169104,16811.0,16810.0,0.00816995]
[1672986574008,2.94567878,16811.0,16810.0,0.00816995]
[1672986576836,2.73426844,16811.0,16810.0,0.00816995]
[1672986577102,2.13277928,16811.0,16810.0,0.00816995]
[1672986580222,1.52111428,16811.0,16810.0,0.00816995]
[1672986580483,1.52111428,16811.0,16810.0,0.00429368]
[1672986581318,2.13277928,16811.0,16810.0,0.00429368]
[1672986581852,1.52111428,16811.0,16810.0,0.00429368]
[1672986582397,2.13277928,16811.0,16810.0,0.00429368]
[1672986582921,1.52111428,16811.0,16810.0,0.00429368]
[1672986583496,2.13277928,16811.0,16810.0,0.00429368]
[1672986584020,2.46580735,16811.0,16810.0,0.00429368]
[1672986586617,3.06729651,16811.0,16810.0,0.00429368]
[1672986587128,2.46580735,16811.0,16810.0,0.00429368]
[1672986587646,3.06729651,16811.0,16810.0,0.00429368]
[1672986588449,3.66330877,16811.0,16810.0,0.00429368]
[1672986590998,3.06729651,16811.0,16810.0,0.00429368]
[1672986591541,3.66330877,16811.0,16810.0,0.00429368]
[1672986592847,3.06729651,16811.0,16810.0,0.00429368]
[1672986595843,3.66330877,16811.0,16810.0,0.00429368]
[1672986596100,3.71581541,16811.0,16810.0,0.00429368]
[1672986596355,4.36178992,16811.0,16810.0,0.00429368]
[1672986596628,3.76657468,16811.0,16810.0,0.00429368]
[1672986596871,4.36258694,16811.0,16810.0,0.00429368]
[1672986597116,3.76657468,16811.0,16810.0,0.00429368]
[1672986597365,3.76030076,16811.0,16810.0,0.00429368]
[1672986597614,4.36251185,16811.0,16810.0,0.00429368]
[1672986597863,4.28328744,16811.0,16810.0,0.00429368]
[1672986598117,3.16545276,16811.0,16810.0,0.00429368]
[1672986598367,3.76766899,16811.0,16810.0,0.00429368]
[1672986599621,4.28328744,16811.0,16810.0,0.00429368]
[1672986599864,3.76030076,16811.0,16810.0,0.00429368]
[1672986600354,3.76030076,16811.0,16810.0,0.00227448]
[1672986600608,3.76761341,16811.0,16810.0,0.00227448]
[1672986601488,3.16545276,16811.0,16810.0,0.00227448]
[1672986602044,2.83242469,16811.0,16810.0,0.00227448]
[1672986602582,3.42727269,16811.0,16810.0,0.00227448]
[1672986603120,3.42727269,16811.0,16808.0,1.2859983]
[1672986603369,0.53525976,16809.0,16808.0,1.2859983]
[1672986603621,0.53525976,16809.0,16808.0,1.27141318]
[1672986604136,0.87753268,16809.0,16808.0,1.27141318]
[1672986604428,0.87753268,16809.0,16807.0,1.19097426]
[1672986604650,0.34227292,16808.0,16807.0,1.09971112]
[1672986605433,0.34227292,16808.0,16807.0,1.10571112]
[1672986605667,0.34227292,16808.0,16807.0,1.09971112]
[1672986605952,0.34627292,16808.0,16807.0,1.12471112]
[1672986606453,0.34627292,16808.0,16807.0,1.71970112]
[1672986607216,0.79225933,16808.0,16807.0,1.71970112]
[1672986607749,0.57618612,16808.0,16807.0,1.71970112]
[1672986608006,0.34627292,16808.0,16807.0,1.71970112]
[1672986609796,0.79222275,16808.0,16807.0,1.71970112]
[1672986610311,0.34627292,16808.0,16807.0,1.71970112]
[1672986610598,0.84627292,16808.0,16807.0,0.619962]
[1672986610930,0.84627292,16808.0,16807.0,0.025]
[1672986610931,2.88451709,16808.0,16807.0,0.025]
[1672986611601,2.34925733,16808.0,16807.0,0.025]
[1672986612618,2.88451709,16808.0,16807.0,0.025]
[1672986614630,2.34925733,16808.0,16807.0,0.025]
[1672986614896,2.88451709,16808.0,16807.0,0.025]
[1672986615418,2.61558272,16808.0,16807.0,0.025]
[1672986617403,2.08032296,16808.0,16807.0,0.025]
[1672986617908,1.46865796,16808.0,16807.0,0.025]
[1672986618454,2.08032296,16808.0,16807.0,0.025]
[1672986618954,2.61558272,16808.0,16807.0,0.025]
[1672986620512,2.87715599,16808.0,16807.0,0.025]
[1672986624519,2.87715599,16808.0,16807.0,0.02488594]
[1672986624768,2.61558272,16808.0,16807.0,0.02488594]
[1672986643320,2.00391772,16808.0,16807.0,0.02488594]
[1672986644678,2.00391772,16808.0,16807.0,1.92420373]
[1672986644679,0.88153268,16808.0,16807.0,1.92420373]
[1672986644928,0.34627292,16808.0,16807.0,1.92420373]
[1672986645709,0.79233478,16808.0,16807.0,1.92420373]
[1672986647791,0.80687551,16808.0,16807.0,2.52021599]
[1672986648332,1.09055731,16808.0,16807.0,2.52021599]
[1672986648618,1.09055717,16808.0,16807.0,2.52021599]
[1672986648838,1.09055527,16808.0,16807.0,2.52021599]
[1672986649357,1.07442825,16808.0,16807.0,2.52021599]
[1672986649638,1.07442825,16808.0,16807.0,1.92420373]
[1672986649931,1.09150617,16808.0,16807.0,1.92420373]
[1672986650383,0.80687551,16808.0,16807.0,1.92420373]
[1672986650901,1.09150206,16808.0,16807.0,1.92420373]
[1672986653529,1.07432121,16808.0,16807.0,1.92420373]
[1672986654304,0.80687551,16808.0,16807.0,1.92420373]
[1672986655340,1.08725269,16808.0,16807.0,1.92420373]
[1672986655597,1.0872398,16808.0,16807.0,1.92420373]
[1672986661495,0.80687551,16808.0,16807.0,1.92420373]
[1672986661989,0.62821906,16808.0,16807.0,1.92420373]
[1672986663222,0.80648244,16808.0,16807.0,2.52021599]
[1672986663473,0.44966879,16808.0,16807.0,2.52021599]
[1672986665657,0.44966879,16808.0,16807.0,1.92420373]
[1672986668123,0.27140541,16808.0,16807.0,1.92420373]
[1672986668374,1.07428092,16808.0,16807.0,1.92420373]
[1672986668599,1.0877404,16808.0,16807.0,1.92412689]
[1672986670469,1.03092675,16808.0,16807.0,1.92412689]
[1672986670726,0.73092675,16808.0,16807.0,1.92412689]
[1672986674685,1.33741389,16808.0,16807.0,0.6197991]
[1672986675996,1.52469626,16808.0,16807.0,0.6197991]
[1672986677497,1.33741389,16808.0,16807.0,0.6197991]
[1672986681132,1.78317322,16808.0,16807.0,0.6197991]
[1672986681386,1.33741389,16808.0,16807.0,0.6197991]
[1672986681884,0.83741389,16808.0,16807.0,0.6197991]
[1672986682133,1.13741389,16808.0,16807.0,0.6197991]
[1672986682675,1.75050152,16808.0,16807.0,0.6197991]
[1672986683473,1.75059218,16808.0,16807.0,0.6197991]
[1672986687870,1.45059218,16808.0,16807.0,0.6197991]
[1672986688439,1.45059218,16808.0,16807.0,1.2147891]
[1672986690501,0.73077581,16808.0,16807.0,1.2147891]
[1672986691029,1.08751674,16808.0,16807.0,1.80219878]
[1672986697289,0.73077581,16808.0,16807.0,1.80219878]
[1672986698068,1.08744466,16808.0,16807.0,1.80219878]
[1672986701535,0.80657977,16808.0,16807.0,1.80219878]
[1672986702290,1.09212105,16808.0,16807.0,1.80219878]
[1672986709760,0.7354522,16808.0,16807.0,1.80219878]
[1672986710573,1.48060437,16808.0,16807.0,1.21468377]
[1672986710792,1.23538788,16808.0,16807.0,1.21468377]
[1672986711060,0.78954128,16808.0,16807.0,1.21468377]
[1672986718451,0.78954128,16808.0,16807.0,0.61969377]
[1672986721309,1.32480104,16808.0,16807.0,0.61969377]
[1672986722068,1.04010236,16808.0,16807.0,0.61969377]
[1672986728995,1.04010236,16808.0,16807.0,1.21468377]
[1672986729498,0.54010236,16808.0,16807.0,1.21468377]
[1672986730197,0.54010236,16808.0,16807.0,0.61969377]
[1672986730742,0.84010236,16808.0,16807.0,0.61969377]
[1672986732547,0.58954128,16808.0,16807.0,0.61958448]
[1672986732824,0.63598428,16808.0,16807.0,0.61958448]
[1672986733060,0.33598428,16808.0,16807.0,0.61958448]
[1672986733295,0.83598428,16808.0,16807.0,0.61958448]
[1672986734557,0.33598428,16808.0,16807.0,0.61958448]
[1672986734814,0.73598428,16808.0,16807.0,0.61958448]
[1672986735340,0.33598428,16808.0,16807.0,0.61958448]
[1672986735588,0.63598428,16808.0,16807.0,0.61958448]
[1672986735837,0.87118966,16808.0,16807.0,0.61958448]
[1672986736361,0.57118966,16808.0,16807.0,0.61958448]
[1672986736857,0.33598428,16808.0,16807.0,0.61958448]
[1672986738920,0.33598428,16808.0,16807.0,1.21457448]
[1672986739644,0.78189995,16808.0,16807.0,1.21457448]
[1672986741151,0.33598428,16808.0,16807.0,0.61958448]
[1672986741920,0.33598428,16808.0,16807.0,1.21457448]
[1672986743264,0.33598428,16808.0,16807.0,0.61958448]
[1672986744730,0.84118966,16808.0,16807.0,0.61958448]
[1672986744956,1.45285466,16808.0,16807.0,0.61958448]
[1672986745721,1.15285466,16808.0,16807.0,0.61958448]
[1672986745975,0.54118966,16808.0,16807.0,0.61958448]
[1672986746480,1.04118966,16808.0,16807.0,0.61958448]
[1672986747217,0.54118966,16808.0,16807.0,0.61958448]
[1672986747725,0.54118966,16808.0,16807.0,1.21457448]
[1672986747985,1.04118966,16808.0,16807.0,1.21457448]
[1672986748507,1.18634677,16808.0,16807.0,0.02459448]
[1672986748773,1.72160653,16808.0,16807.0,0.02459448]
[1672986749036,2.33327153,16808.0,16807.0,0.02459448]
[1672986751396,1.72160653,16808.0,16807.0,0.02459448]
[1672986751654,2.33327153,16808.0,16807.0,0.02459448]
[1672986756758,2.33327153,16808.0,16807.0,0.04145288]
[1672986757017,2.33327153,16808.0,16807.0,0.04137141]
[1672986758643,1.72160653,16808.0,16807.0,0.04137141]
[1672986759178,2.33327153,16808.0,16807.0,0.04137141]
[1672986759699,1.72160653,16808.0,16807.0,0.04137141]
[1672986763240,2.33327153,16808.0,16807.0,0.04137141]
[1672986763538,2.93778379,16808.0,16807.0,0.04137141]
[1672986766793,2.40252403,16808.0,16807.0,0.04137141]
[1672986767549,2.40252403,16808.0,16807.0,0.02214918]
[1672986768347,2.94654937,16808.0,16807.0,0.02214918]
[1672986768639,2.34438214,16808.0,16807.0,0.02214918]
[1672986768878,2.13917676,16808.0,16807.0,0.02214918]
[1672986774506,2.67099313,16808.0,16807.0,0.02214918]
[1672986775032,2.15432877,16808.0,16807.0,0.02214918]
[1672986775267,2.72237135,16808.0,16807.0,0.02214918]
[1672986775800,3.70855279,16808.0,16807.0,0.02214918]
[1672986780456,3.14051021,16808.0,16807.0,0.02214918]
[1672986780711,3.14051021,16808.0,16807.0,0.00793875]
[1672986781500,3.73186347,16808.0,16807.0,0.00793875]
[1672986784308,4.32681747,16808.0,16807.0,0.00793875]
[1672986785568,3.77110355,16808.0,16807.0,0.00793875]
[1672986785868,4.36505122,16808.0,16807.0,0.00793875]
[1672986786089,4.06288399,16808.0,16807.0,0.00793875]
[1672986786615,3.76288399,16808.0,16807.0,0.00793875]
[1672986787125,4.06288399,16808.0,16807.0,0.00793875]
[1672986787396,3.76288399,16808.0,16807.0,0.00793875]
[1672986787651,1.0057689,16807.0,16806.0,0.00612153]
[1672986787912,3.99323201,16807.0,16806.0,0.00612153]
[1672986788173,4.51621869,16807.0,16806.0,0.00612153]
[1672986788449,3.91515619,16807.0,16806.0,0.00612153]
[1672986788959,3.93015619,16807.0,16806.0,0.03212153]
[1672986789747,3.40938729,16807.0,16806.0,0.00612153]
[1672986790032,4.17258481,16807.0,16806.0,0.00912153]
[1672986790288,3.57759481,16807.0,16806.0,0.00912153]
[1672986790550,3.29920251,16807.0,16806.0,0.00912153]
[1672986791082,2.66070522,16807.0,16806.0,0.00912153]
[1672986791344,2.13771854,16807.0,16806.0,0.00912153]
[1672986791588,3.33377104,16807.0,16806.0,0.00912153]
[1672986791851,3.73118721,16807.0,16806.0,0.00912153]
[1672986792432,3.73118721,16807.0,16806.0,0.00336636]
[1672986792682,4.25417389,16807.0,16806.0,0.00336636]
[1672986792929,4.84916389,16807.0,16806.0,0.00336636]
[1672986797885,5.44311156,16807.0,16806.0,0.00336636]
[1672986798165,5.14204906,16807.0,16806.0,0.00093052]
[1672986798441,5.1776884,16807.0,16806.0,0.00093052]
[1672986798709,4.65470172,16807.0,16806.0,0.00093052]
[1672986799181,6.05369883,16807.0,16806.0,5.2e-07]
[1672986799433,5.1776884,16807.0,16806.0,5.2e-07]
[1672986799702,6.05369883,16807.0,16806.0,5.2e-07]
[1672986800207,5.14204906,16807.0,16806.0,5.2e-07]
[1672986801515,4.97781693,16807.0,16806.0,5.2e-07]
[1672986802002,5.05538928,16807.0,16806.0,5.2e-07]
[1672986802267,0.5,16806.0,16805.0,0.01044911]
[1672986802526,2.04494123,16806.0,16805.0,0.01044911]
[1672986803302,2.57882929,16806.0,16805.0,0.01044911]
[1672986804089,2.04494123,16806.0,16805.0,0.01044911]
[1672986804318,2.5788216,16806.0,16805.0,0.01044911]
[1672986805097,2.7138216,16806.0,16805.0,0.01344911]
[1672986805392,2.7138216,16806.0,16805.0,0.0092833]
[1672986805602,2.5788216,16806.0,16805.0,0.0062833]
[1672986805863,1.9671566,16806.0,16805.0,0.0062833]
[1672986806135,2.7148216,16806.0,16805.0,0.0092833]
[1672986807157,2.73274354,16806.0,16805.0,0.0092833]
[1672986807433,3.72613443,16806.0,16805.0,0.0092833]
[1672986807680,1.11009732,16805.0,16804.0,0.01949453]
[1672986807965,2.61181586,16805.0,16804.0,0.01949453]
[1672986808185,3.13480254,16805.0,16804.0,0.01949453]
[1672986808729,2.52470522,16805.0,16804.0,0.01949453]
[1672986808963,2.33063521,16805.0,16804.0,0.01949453]
[1672986809478,1.82879393,16805.0,16804.0,0.02149453]
[1672986810231,2.49585338,16805.0,16804.0,0.02149453]
[1672986810500,3.01986619,16805.0,16804.0,0.02149453]
[1672986810744,3.4830446,16805.0,16804.0,0.02149453]
[1672986811006,2.94684061,16805.0,16804.0,0.02149453]
[1672986811265,3.01986619,16805.0,16804.0,0.02149453]
[1672986812093,2.42385393,16805.0,16804.0,0.02149453]
[1672986812865,2.5390771,16805.0,16804.0,0.02149453]
[1672986813895,2.78507996,16805.0,16804.0,0.02149453]
[1672986814445,2.17341496,16805.0,16804.0,0.02149453]
[1672986816531,2.78507996,16805.0,16804.0,0.02149453]
[1672986817815,2.17341496,16805.0,16804.0,0.02149453]
[1672986818067,2.78507996,16805.0,16804.0,0.02149453]
[1672986819597,3.07720296,16805.0,16804.0,0.02149453]
[1672986821768,2.54311245,16805.0,16804.0,0.02149453]
[1672986823358,3.07758938,16805.0,16804.0,0.02149453]
[1672986824374,2.54311245,16805.0,16804.0,0.02149453]
[1672986827763,2.25098945,16805.0,16804.0,0.0111486]
[1672986828295,2.7855679,16805.0,16804.0,0.0111486]
[1672986828571,2.1739029,16805.0,16804.0,0.0111486]
[1672986830687,1.63932445,16805.0,16804.0,0.0111486]
[1672986831453,2.25098945,16805.0,16804.0,0.0111486]
[1672986832019,2.66886342,16805.0,16804.0,0.0111486]
[1672986834662,2.05719842,16805.0,16804.0,0.0111486]
[1672986834919,1.63932445,16805.0,16804.0,0.0111486]
[1672986836018,2.17413529,16805.0,16804.0,0.0111486]
[1672986836272,1.63932445,16805.0,16804.0,0.0111486]
[1672986837337,2.17413247,16805.0,16804.0,0.0111486]
[1672986838988,1.63932445,16805.0,16804.0,0.0111486]
[1672986839908,2.1741707,16805.0,16804.0,0.0111486]
[1672986840699,1.93039742,16805.0,16804.0,0.0111486]
[1672986841233,2.54206242,16805.0,16804.0,0.0111486]
[1672986841492,3.14262145,16805.0,16804.0,0.0111486]
[1672986841789,2.54206242,16805.0,16804.0,0.0111486]
[1672986842531,1.93039742,16805.0,16804.0,0.0111486]
[1672986843329,2.53095645,16805.0,16804.0,0.0111486]
[1672986843571,3.14262145,16805.0,16804.0,0.0111486]
[1672986844900,3.73768145,16805.0,16804.0,0.0111486]
[1672986845441,4.33369371,16805.0,16804.0,0.0111486]
[1672986845973,3.14262145,16805.0,16804.0,0.0111486]
[1672986846230,2.54206242,16805.0,16804.0,0.0111486]
[1672986846523,3.14262145,16805.0,16804.0,0.0111486]
[1672986847827,3.14262145,16805.0,16804.0,0.00601987]
[1672986848584,2.85154848,16805.0,16804.0,0.00601987]
[1672986851543,3.44756074,16805.0,16804.0,0.00601987]
[1672986852248,3.44660848,16805.0,16804.0,0.00601987]
[1672986852697,4.04262074,16805.0,16804.0,0.00601987]
[1672986853375,4.08639078,16805.0,16804.0,0.00601987]
[1672986853638,4.64304029,16805.0,16804.0,0.00217943]